bitfinex/quotes_ETHUSD_20250319
["timestamp","ask_amount","ask_price","bid_price","bid_amount"]
[1742401493530,5.70867,2047.6,2047.2,0.939689]
[1742401493825,4.88409,2047.5,2047.2,0.939689]
[1742401493987,9.76827,2047.5,2047.2,0.939689]
[1742401494317,4.88409,2047.5,2047.2,0.939689]
[1742401494515,10.59266,2047.6,2047.2,0.939689]
[1742401494697,4.88401,2047.5,2047.2,0.939689]
[1742401494898,9.76819,2047.5,2047.0,5.057]
[1742401495221,4.88401,2047.5,2047.0,9.94209]
[1742401495410,5.70866,2047.6,2047.0,14.45271]
[1742401495615,4.88404,2047.5,2047.0,14.45271]
[1742401495911,5.70874,2047.6,2047.1,4.88478]
[1742401496114,0.8249,2047.6,2047.2,4.88462]
[1742401496315,5.70878,2047.6,2047.1,4.88478]
[1742401497322,10.18930581,2047.6,2047.1,4.88478]
[1742401497523,4.88405,2047.5,2047.0,14.45284]
[1742401497735,4.88456,2047.3,2047.0,9.56468]
[1742401497892,4.88456,2047.3,2047.0,4.51068]
[1742401498089,4.88483,2047.2,2047.0,4.51068]
[1742401498288,4.48052581,2047.4,2047.0,9.39576]
[1742401498527,4.88448,2047.3,2047.0,4.51068]
[1742401498695,9.76912,2047.3,2047.0,4.51068]
[1742401499127,4.88479,2047.2,2047.0,4.51068]
[1742401499436,10.12431581,2047.2,2047.0,4.51068]
[1742401499605,4.88495,2047.1,2047.0,4.51068]
[1742401500007,5.64379,2047.2,2047.0,4.51068]
[1742401500192,10.52869,2047.2,2047.0,4.51068]
[1742401500393,4.88495,2047.1,2047.0,4.51068]
[1742401500594,5.937824,2047.1,2047.0,4.51068]
[1742401501040,4.88576,2046.8,2046.4,5.053]
[1742401501237,9.36608581,2046.9,2046.4,4.88662]
[1742401501423,5.68132,2047.0,2046.5,7.88636]
[1742401501626,5.6814,2047.0,2046.4,4.88654]
[1742401501812,5.6814,2047.0,2046.6,4.88614]
[1742401502019,5.6814,2047.0,2046.5,4.88628]
[1742401502324,5.68133,2047.0,2046.6,4.88607]
[1742401502528,4.88479,2047.2,2046.7,4.88575]
[1742401502722,5.69789,2047.2,2046.8,0.488575]
[1742401503035,4.88504,2047.1,2046.7,5.053]
[1742401503341,4.88504,2047.1,2046.7,9.93877]
[1742401504242,4.88504,2047.1,2046.7,14.44945]
[1742401504539,5.69789,2047.2,2046.7,14.44937]
[1742401504715,4.88503,2047.1,2046.7,14.44937]
[1742401505033,4.88552,2046.9,2046.7,4.51068]
[1742401505335,5.63705,2046.8,2046.5,5.053]
[1742401505544,5.63705,2046.8,2046.4,4.51068]
[1742401505724,4.88623,2046.6,2046.4,4.51068]
[1742401505915,4.88623,2046.6,2046.3,3.0]
[1742401506116,4.88643,2046.5,2046.3,3.0]
[1742401506611,9.77258,2046.6,2046.2,9.56268]
[1742401506819,4.88672,2046.4,2046.2,5.052]
[1742401507337,9.77357,2046.4,2046.2,5.052]
[1742401507542,4.88686,2046.3,2046.2,5.052]
[1742401507701,5.68306,2046.3,2046.2,5.052]
[1742401507905,4.88722,2046.2,2045.9,4.51068]
[1742401508243,4.88742,2046.1,2045.9,9.56268]
[1742401508540,4.88742,2046.1,2045.9,4.51068]
[1742401508907,4.88758,2046.0,2045.9,4.51068]
[1742401509103,4.88818,2045.8,2045.6,4.51068]
[1742401509337,4.88782,2045.9,2045.6,4.51068]
[1742401509836,4.88736,2046.1,2045.6,4.51068]
[1742401510010,4.88742,2046.1,2045.6,14.28744]
[1742401510228,4.88767,2046.0,2045.6,4.51068]
[1742401510554,9.77545,2046.0,2045.6,9.39919]
[1742401510758,4.88767,2046.0,2045.6,9.39911]
[1742401510931,0.8195,2046.2,2045.8,4.88794]
[1742401511148,4.88743,2046.1,2045.6,14.45217]
[1742401511361,4.88792,2045.9,2045.6,9.56368]
[1742401511530,9.77591,2045.9,2045.6,5.053]
[1742401511735,4.88821,2045.8,2045.5,5.27248]
[1742401512061,4.88838,2045.7,2045.5,9.56268]
[1742401512219,4.88821,2045.8,2045.5,4.51068]
[1742401512421,9.77648,2045.8,2045.5,4.51068]
[1742401512622,4.88837,2045.7,2045.4,5.052]
[1742401512924,4.88865,2045.6,2045.4,5.052]
[1742401513135,4.88831,2045.7,2045.4,5.052]
[1742401513339,4.88864,2045.6,2045.4,5.052]
[1742401514166,4.8883,2045.7,2045.3,9.3998]
[1742401515066,4.88839,2045.7,2045.3,14.28892]
[1742401515224,9.77689,2045.7,2045.3,9.3998]
[1742401515423,4.88855,2045.6,2045.3,4.51068]
[1742401515663,9.77689,2045.7,2045.3,9.39984]
[1742401516161,4.88863,2045.6,2045.2,19.34235]
[1742401516329,4.88863,2045.6,2045.2,14.45301]
[1742401517151,4.88863,2045.6,2045.2,19.34239]
[1742401517348,4.88863,2045.6,2045.2,14.45301]
[1742401517748,4.88894,2045.5,2045.1,4.88964]
[1742401517949,5.377834,2045.5,2045.1,7.88964]
[1742401518261,4.88904,2045.4,2045.1,7.88964]
[1742401518871,4.88904,2045.4,2045.1,4.88964]
[1742401519061,5.72194,2045.4,2045.0,9.94294]
[1742401519255,0.8329,2045.4,2045.1,4.88972]
[1742401519565,0.8329,2045.4,2045.1,4.88965]
[1742401519865,4.88909,2045.4,2045.0,9.94288]
[1742401520467,4.88927,2045.3,2045.0,9.94288]
[1742401520625,4.88927,2045.3,2045.0,5.053]
[1742401520831,5.31342581,2045.6,2044.9,5.30928]
[1742401521166,4.94989414,2045.5,2044.9,10.36228]
[1742401521374,0.7533,2045.2,2044.9,9.56368]
[1742401521574,5.64289,2045.2,2044.9,9.56368]
[1742401521727,0.7533,2045.2,2044.9,9.56368]
[1742401521932,0.7533,2045.2,2044.9,4.51068]
[1742401521933,4.88994,2045.1,2044.9,4.51068]
[1742401522147,10.53247,2045.2,2044.8,4.89035]
[1742401522342,5.64281,2045.2,2044.8,4.89035]
[1742401522636,5.64281,2045.2,2044.7,7.89069]
[1742401522931,4.88985,2045.1,2044.8,4.89038]
[1742401523131,4.88998,2045.0,2044.7,7.8906]
[1742401523334,4.89027,2044.9,2044.7,3.0]
[1742401523670,0.7533,2045.2,2044.6,4.51068]
[1742401523671,4.89053,2044.8,2044.6,9.56368]
[1742401523969,4.89023,2044.9,2044.6,9.56368]
[1742401524263,4.89021,2044.9,2044.6,9.56368]
[1742401524465,4.89053,2044.8,2044.6,4.51068]
[1742401524865,4.89069,2044.7,2044.6,4.51068]
[1742401525051,5.71681,2044.6,2044.2,4.89177]
[1742401525469,4.89161,2044.4,2044.0,10.36928]
[1742401525670,4.8917,2044.3,2044.0,15.26156]
[1742401525860,4.89161,2044.4,2044.1,4.89212]
[1742401526058,4.89165,2044.3,2044.0,9.56368]
[1742401526274,9.78301,2044.4,2044.0,9.56368]
[1742401526487,4.89141,2044.4,2044.0,14.45603]
[1742401526866,4.89141,2044.4,2044.0,9.56368]
[1742401527065,4.89141,2044.4,2044.0,14.45596]
[1742401527290,4.89141,2044.4,2044.1,4.89212]
[1742401527596,0.8258,2044.6,2044.2,4.89176]
[1742401527888,5.71617,2044.9,2044.5,4.89107]
[1742401528069,5.71617,2044.9,2044.4,4.89129]
[1742401528070,4.89055,2044.8,2044.4,4.89129]
[1742401528680,4.89055,2044.8,2044.4,4.89125]
[1742401528886,5.71602,2044.9,2044.4,4.89125]
[1742401529086,4.88993,2045.1,2044.7,4.89057]
[1742401529285,4.89005,2045.0,2044.6,9.78171]
[1742401529590,4.89005,2045.0,2044.6,9.78174]
[1742401530163,4.89005,2045.0,2044.6,4.89081]
[1742401530372,4.89005,2045.0,2044.6,9.7816]
[1742401530673,4.89005,2045.0,2044.6,4.89079]
[1742401530879,5.71564,2045.1,2044.7,4.8906]
[1742401531054,5.71564,2045.1,2044.5,10.36928]
[1742401531055,0.8258,2045.1,2044.8,4.89021]
[1742401531255,4.88962,2045.2,2044.8,4.89021]
[1742401531455,0.756,2045.3,2044.8,4.89021]
[1742401531456,0.756,2045.3,2045.1,4.88968]
[1742401531653,4.88865,2045.6,2045.2,5.378378]
[1742401531882,0.7774,2045.7,2045.2,5.378378]
[1742401532079,5.66578,2045.7,2045.2,5.378378]
[1742401532264,4.88819,2045.8,2045.4,4.88878]
[1742401532464,4.88819,2045.8,2045.4,9.77764]
[1742401532664,4.88819,2045.8,2045.4,4.88878]
[1742401533192,5.66474,2046.1,2045.4,8.34296563]
[1742401533497,4.88758,2046.0,2045.7,4.88817]
[1742401533798,4.88758,2046.0,2045.6,4.88846]
[1742401533968,5.66474,2046.1,2045.6,4.88839]
[1742401534172,0.7987,2046.4,2046.0,4.88755]
[1742401534367,5.68547,2046.4,2046.0,4.88741]
[1742401534578,4.88702,2046.3,2045.9,5.63775]
[1742401534797,4.88702,2046.3,2045.9,10.52541]
[1742401535193,4.88702,2046.3,2045.9,5.63766]
[1742401535396,4.88718,2046.2,2045.9,0.75]
[1742401535599,4.88718,2046.2,2045.8,9.39873]
[1742401536099,4.88702,2046.3,2045.8,9.39856]
[1742401536398,4.88702,2046.3,2045.9,4.88782]
[1742401536598,4.88711,2046.2,2045.9,4.88782]
[1742401536793,9.77316,2046.5,2046.0,0.0488732]
[1742401536995,4.88671,2046.4,2046.0,4.88754]
[1742401537202,4.88671,2046.4,2046.0,4.88738]
[1742401537404,0.7936,2046.8,2046.2,5.66987]
[1742401537566,4.88633,2046.6,2046.2,5.66987]
[1742401537761,0.7936,2046.8,2046.2,0.7829]
[1742401537969,4.8864,2046.5,2046.2,0.7829]
[1742401538167,4.88703,2046.3,2045.9,5.67068]
[1742401538381,4.88703,2046.3,2046.0,9.93954]
[1742401538589,4.8867,2046.4,2046.0,5.052]
[1742401538788,4.88675,2046.4,2046.0,5.052]
[1742401538996,4.88675,2046.4,2046.0,9.93957]
[1742401539199,4.88731,2046.2,2046.0,5.052]
[1742401539499,4.88697,2046.3,2046.0,5.052]
[1742401539669,4.88724,2046.2,2046.0,5.052]
[1742401540004,4.88697,2046.3,2046.0,5.052]
[1742401540181,9.77344,2046.4,2046.0,9.9394]
[1742401540400,4.88663,2046.4,2046.0,9.9394]
[1742401540894,7.48052581,2046.7,2046.1,4.88734]
[1742401541096,4.88672,2046.4,2046.0,9.93948]
[1742401541712,9.77344,2046.4,2046.0,9.93948]
[1742401542018,4.8864,2046.5,2046.1,4.88732]
[1742401542218,9.77297,2046.5,2046.1,4.88732]
[1742401542391,4.88595,2046.7,2046.2,4.88701]
[1742401542716,4.88639,2046.5,2046.1,4.88724]
[1742401542887,4.88592,2046.7,2046.3,4.88673]
[1742401543086,5.67928,2046.8,2046.3,0.04886292]
[1742401543087,0.7936,2046.8,2046.3,0.04886292]
[1742401543390,5.67938,2046.8,2046.4,4.88652]
[1742401543595,5.67938,2046.8,2046.3,5.66531]
[1742401543798,4.88599,2046.7,2046.4,5.453151]
[1742401544022,4.88599,2046.7,2046.4,0.566531]
[1742401544483,4.88678,2046.4,2046.1,0.7786]
[1742401544814,4.88678,2046.4,2046.0,14.45006]
[1742401544815,4.88695,2046.3,2046.0,10.51726218]
[1742401545021,4.88695,2046.3,2046.0,9.56068]
[1742401545188,4.88695,2046.3,2046.0,14.44824]
[1742401545610,5.67115,2046.4,2046.1,4.88732]
[1742401545809,5.67115,2046.4,2046.0,9.56068]
[1742401545810,4.88691,2046.3,2046.0,9.56068]
[1742401546021,5.67115,2046.4,2046.0,14.44824]
[1742401546226,4.88649,2046.5,2046.0,9.56068]
[1742401546417,4.88673,2046.4,2046.0,14.44818]
[1742401546623,5.68135,2046.6,2046.0,9.56068]
[1742401546819,4.88734,2046.1,2046.0,4.51068]
[1742401547030,4.88689,2046.3,2046.0,4.51068]
[1742401547233,4.88717,2046.2,2046.0,4.51068]
[1742401548339,4.88688,2046.3,2045.9,4.88782]
[1742401548506,4.88688,2046.3,2045.9,4.88771]
[1742401548705,4.88722,2046.2,2045.8,14.44771]
[1742401548902,4.88722,2046.2,2045.8,19.33562]
[1742401549117,4.88722,2046.2,2045.8,9.55968]
[1742401549318,4.88761,2046.0,2045.8,9.55968]
[1742401549742,4.88761,2046.0,2045.8,4.51068]
[1742401549945,4.88745,2046.1,2045.8,4.51068]
[1742401550126,9.77439,2046.2,2045.8,4.51068]
[1742401550329,9.77436,2046.2,2045.8,9.3986]
[1742401550535,4.88747,2046.1,2045.8,4.51068]
[1742401550934,4.8878,2046.0,2045.8,4.51068]
[1742401551139,4.88769,2046.0,2045.8,4.51068]
[1742401551344,4.88736,2046.1,2045.8,4.51068]
[1742401551512,9.7749,2046.1,2045.8,4.51068]
[1742401551711,4.88736,2046.1,2045.8,4.51068]
[1742401552115,4.88712,2046.2,2045.8,14.28668]
[1742401552313,4.88719,2046.2,2045.9,4.88777]
[1742401552514,9.77439,2046.2,2045.8,9.39868]
[1742401553148,4.88735,2046.1,2045.8,9.39868]
[1742401553648,9.77487,2046.1,2045.8,4.51068]
[1742401554334,4.88735,2046.1,2045.8,4.51068]
[1742401554715,4.8871,2046.2,2045.5,5.32988]
[1742401554916,4.88815,2045.8,2045.6,5.048]
[1742401555218,5.71067,2046.0,2045.6,5.048]
[1742401555219,4.88784,2045.9,2045.6,5.048]
[1742401555444,9.77583,2045.9,2045.6,5.048]
[1742401555745,4.88808,2045.8,2045.6,5.048]
[1742401556244,4.88742,2046.1,2045.7,4.88817]
[1742401556446,4.88771,2046.0,2045.6,14.82476]
[1742401556748,4.88771,2046.0,2045.6,9.93637]
[1742401557048,4.88771,2046.0,2045.6,9.93647]
[1742401557251,4.88769,2046.0,2045.6,9.93647]
[1742401557545,4.88769,2046.0,2045.6,9.93639]
[1742401558133,4.88769,2046.0,2045.7,4.88829]
[1742401558347,4.88769,2046.0,2045.6,14.82478]
[1742401559144,4.88737,2046.1,2045.7,9.77623]
[1742401559345,4.88737,2046.1,2045.7,4.88807]
[1742401559550,5.67336,2046.2,2045.8,4.88803]
[1742401559844,4.88736,2046.1,2045.8,4.88803]
[1742401560046,9.77447,2046.2,2045.8,4.88794]
[1742401560247,4.88716,2046.2,2045.8,9.77591]
[1742401560464,4.88716,2046.2,2045.8,4.88793]
[1742401560757,4.88716,2046.2,2045.8,9.77586]
[1742401560922,4.88716,2046.2,2045.8,4.88793]
[1742401561653,5.67817,2046.4,2045.8,4.88806]
[1742401561858,4.88706,2046.3,2045.9,5.67231]
[1742401562156,4.8872,2046.2,2045.9,5.67231]
[1742401562344,4.88706,2046.3,2045.9,5.67231]
[1742401562747,0.7914,2046.4,2045.9,0.7846]
[1742401562748,4.8872,2046.2,2045.9,0.7846]
[1742401562935,9.77449,2046.2,2045.8,4.88797]
[1742401563136,4.8872,2046.2,2045.8,9.77587]
[1742401563465,4.8872,2046.2,2045.8,9.77586]
[1742401563846,4.8872,2046.2,2045.8,4.8879]
[1742401564063,4.88698,2046.3,2046.0,4.88755]
[1742401564225,4.88698,2046.3,2046.1,0.488755]
[1742401565160,0.784,2046.7,2046.1,15.26351949]
[1742401565458,21.70950449,2046.9,2046.1,6.330855]
[1742401565644,0.7681,2046.2,2045.8,7.88796]
[1742401565823,0.7681,2046.2,2045.8,5.046]
[1742401566023,4.88753,2046.1,2045.8,5.046]
[1742401566223,4.88794,2045.9,2045.5,5.67335]
[1742401566457,4.88794,2045.9,2045.5,10.71935]
[1742401566655,4.88841,2045.7,2045.3,4.51068]
[1742401566834,4.88885,2045.5,2045.3,5.29528]
[1742401567030,4.88885,2045.5,2045.3,9.55668]
[1742401567659,4.88901,2045.4,2045.3,5.046]
[1742401567864,4.88885,2045.5,2045.3,5.046]
[1742401568859,4.88855,2045.6,2045.3,5.046]
[1742401569256,4.88882,2045.5,2045.3,5.046]
[1742401569723,4.80100449,2045.8,2045.1,5.29528]
[1742401569724,4.88919,2045.4,2045.1,5.29528]
[1742401569927,4.88981,2045.1,2044.9,4.51068]
[1742401570354,4.88928,2045.3,2044.9,9.40071]
[1742401570554,5.64972,2045.4,2045.0,4.88985]
[1742401570864,4.88951,2045.2,2044.9,4.51068]
[1742401571032,4.88925,2045.3,2044.9,4.51068]
[1742401571232,4.88925,2045.3,2044.9,5.44533845]
[1742401571433,5.64972,2045.4,2045.0,4.88992]
[1742401571670,4.88941,2045.3,2044.9,10.33536845]
[1742401571866,0.7607,2045.4,2044.9,4.51068]
[1742401571867,4.88962,2045.2,2044.9,4.51068]
[1742401572162,4.80610449,2045.4,2044.9,5.47855307]
[1742401572163,4.88985,2045.1,2044.9,5.47855307]
[1742401572362,4.88997,2045.0,2044.9,5.47855307]
[1742401572679,4.89034,2044.9,2044.6,4.51068]
[1742401573174,4.89046,2044.8,2044.6,5.49873342]
[1742401573672,0.7625,2045.0,2044.6,9.40151]
[1742401573839,0.7866,2045.2,2044.6,4.51068]
[1742401574044,4.89031,2044.9,2044.6,4.51068]
[1742401574445,4.89063,2044.8,2044.6,4.51068]
[1742401574646,4.8906,2044.8,2044.6,4.51068]
[1742401574844,4.89022,2044.9,2044.6,4.51068]
[1742401575444,4.83200449,2045.2,2044.7,5.68605]
[1742401575660,5.046,2045.4,2044.9,4.89013]
[1742401575661,4.8894,2045.3,2044.9,4.89013]
[1742401575856,4.8894,2045.3,2044.9,9.7802]
[1742401576165,9.73259449,2045.4,2045.0,4.88997]
[1742401576468,4.8888,2045.5,2045.0,4.88997]
[1742401576469,10.82380449,2045.6,2045.1,0.815]
[1742401576683,4.88913,2045.4,2045.1,0.815]
[1742401576965,4.88926,2045.3,2044.9,9.40087]
[1742401577170,4.88949,2045.2,2044.9,10.21587]
[1742401577369,4.88952,2045.2,2044.9,5.32568]
[1742401577546,9.77873,2045.3,2044.9,10.21581]
[1742401577741,8.93442449,2045.4,2045.0,4.88996]
[1742401577965,9.72242449,2045.6,2045.2,4.8894]
[1742401578272,5.67702,2045.6,2045.2,4.88947]
[1742401578435,4.88823,2045.8,2045.4,4.88899]
[1742401578634,4.88832,2045.7,2045.4,4.88889]
[1742401578943,4.88813,2045.8,2045.4,4.88889]
[1742401579368,4.88813,2045.8,2045.4,9.77777]
[1742401579575,5.65111,2045.9,2045.5,4.88873]
[1742401580037,4.88816,2045.8,2045.4,4.51068]
[1742401580231,4.88816,2045.8,2045.5,1.01941]
[1742401580470,4.88816,2045.8,2045.5,5.90811]
[1742401580671,5.65109,2045.9,2045.5,5.90811]
[1742401580841,4.88807,2045.8,2045.5,1.01941]
[1742401581037,4.88807,2045.8,2045.5,5.90814]
[1742401581457,0.7632,2045.9,2045.5,1.01941]
[1742401581658,4.88773,2046.0,2045.7,0.7942]
[1742401581859,4.8881,2045.8,2045.5,0.7871]
[1742401582071,4.88841,2045.7,2045.5,5.046]
[1742401582973,4.88806,2045.8,2045.5,5.046]
[1742401583173,8.93324449,2045.9,2045.5,9.9347]
[1742401583334,8.93331449,2045.9,2045.6,4.88853]
[1742401583537,8.93331449,2045.9,2045.5,9.93471]
[1742401583761,4.88815,2045.8,2045.5,5.046]
[1742401583962,4.88841,2045.7,2045.5,5.046]
[1742401584773,4.88815,2045.8,2045.5,5.046]
[1742401584774,4.88807,2045.8,2045.5,5.046]
[1742401585392,9.77634,2045.8,2045.5,5.046]
[1742401585852,4.88807,2045.8,2045.5,5.046]
[1742401586778,9.77633,2045.8,2045.5,5.046]
[1742401587079,4.88807,2045.8,2045.5,5.046]
[1742401587281,4.8883,2045.7,2045.5,5.046]
[1742401587579,8.93261449,2046.2,2045.8,4.88795]
[1742401587742,5.6567,2046.3,2045.8,4.88798]
[1742401587942,4.88724,2046.2,2045.8,4.88798]
[1742401588865,4.88691,2046.3,2045.9,4.88771]
[1742401589064,9.77401,2046.3,2045.9,4.88771]
[1742401589242,4.88715,2046.2,2045.9,4.88771]
[1742401589579,4.88715,2046.2,2045.8,4.88798]
[1742401589877,4.88796,2045.9,2045.5,10.72088]
[1742401590375,4.88796,2045.9,2045.6,4.8885]
[1742401590585,8.93302449,2046.0,2045.6,4.8885]
[1742401590767,4.88791,2045.9,2045.5,10.72088]
[1742401590949,4.88791,2045.9,2045.5,15.60954]
[1742401591151,8.93302449,2046.0,2045.6,4.88853]
[1742401591351,4.04540449,2046.0,2045.7,4.88817]
[1742401591598,4.8876,2046.0,2045.7,4.88817]
[1742401591775,4.88784,2045.9,2045.5,10.72101]
[1742401591951,4.88784,2045.9,2045.5,10.72096]
[1742401592152,4.04540449,2046.0,2045.5,5.8323]
[1742401592378,0.8122,2046.1,2045.5,5.8323]
[1742401592379,8.93357449,2045.8,2045.5,5.046]
[1742401592549,4.88838,2045.7,2045.5,5.046]
[1742401592973,4.88859,2045.6,2045.4,4.51068]
[1742401593371,4.88878,2045.5,2045.1,0.7584]
[1742401593680,4.88879,2045.5,2045.2,9.93348]
[1742401593849,4.88879,2045.5,2045.2,5.044]
[1742401594050,8.93394449,2045.6,2045.2,5.044]
[1742401594252,8.93394449,2045.6,2045.3,4.88923]
[1742401594759,5.71072,2045.7,2045.3,4.88925]
[1742401594961,5.71072,2045.7,2045.3,9.77836]
[1742401595143,5.71072,2045.7,2045.3,4.88911]
[1742401595349,4.88832,2045.7,2045.4,4.88892]
[1742401595561,4.88833,2045.7,2045.3,4.88911]
[1742401595962,9.77686,2045.7,2045.3,4.88911]
[1742401596679,8.93397449,2045.6,2045.1,8.64806]
[1742401596985,4.88913,2045.4,2045.1,8.8014]
[1742401597389,4.88927,2045.3,2045.1,5.8014]
[1742401597557,4.88927,2045.3,2045.0,9.55368]
[1742401597961,4.88927,2045.3,2045.0,14.44358]
[1742401598490,5.65701,2045.5,2044.9,4.89011]
[1742401598491,4.04540449,2045.4,2044.9,4.89011]
[1742401598662,4.04540449,2045.4,2044.9,3.0]
[1742401598862,4.88942,2045.3,2044.9,3.0]
[1742401599165,9.77887,2045.3,2044.9,7.8901]
[1742401599367,9.77886,2045.3,2044.9,7.8901]
[1742401599570,4.88953,2045.2,2044.9,6.25853]
[1742401599984,8.93444449,2045.4,2044.9,1.36843]
[1742401600160,4.8901,2045.0,2044.8,4.51068]
[1742401600365,5.71326,2045.1,2044.7,3.7512]
[1742401600576,10.60319,2045.1,2044.7,5.64169]
[1742401600958,5.71326,2045.1,2044.7,5.64169]
[1742401601179,10.60315,2045.1,2044.7,5.64169]
[1742401601475,5.71326,2045.1,2044.7,10.53222]
[1742401601674,5.71326,2045.1,2044.8,4.89045]
[1742401602094,5.71326,2045.1,2044.7,5.64169]
[1742401602282,5.71326,2045.1,2044.7,10.53222]
[1742401602489,0.8235,2045.1,2044.8,4.89042]
[1742401602801,0.8007,2046.4,2046.1,4.88712]
[1742401603091,5.68746,2046.4,2046.0,0.8246]
[1742401603279,8.93270449,2046.2,2046.0,0.8246]
[1742401603456,0.8007,2046.0,2045.6,4.51068]
[1742401603654,4.8879,2045.9,2045.6,9.39913]
[1742401604056,0.8007,2046.0,2045.6,4.51068]
[1742401604256,4.88724,2046.2,2045.8,4.88804]
[1742401604488,4.88724,2046.2,2045.8,4.88796]
[1742401604696,4.88744,2046.1,2045.7,4.88818]
[1742401604867,4.88744,2046.1,2045.8,4.88803]
[1742401605274,6.40800705,2046.2,2045.8,4.88803]
[1742401605596,1.52076705,2046.2,2045.9,4.8877]
[1742401605770,6.275036,2046.3,2046.0,4.88753]
[1742401605966,6.275036,2046.3,2045.9,4.8877]
[1742401606172,6.275036,2046.3,2045.8,5.65682]
[1742401606387,4.88718,2046.2,2045.8,5.65682]
[1742401606563,4.88718,2046.2,2045.9,4.88779]
[1742401606757,0.95655033,2046.2,2045.6,5.26738]
[1742401606961,4.88741,2046.1,2045.7,4.88821]
[1742401607161,9.77491,2046.1,2045.7,4.88816]
[1742401607674,10.73096033,2046.2,2045.8,4.88795]
[1742401607871,5.84369033,2046.2,2045.8,4.88795]
[1742401608072,4.88714,2046.2,2045.8,4.88793]
[1742401608873,4.88743,2046.1,2045.7,9.77645]
[1742401609072,4.88743,2046.1,2045.7,9.77637]
[1742401609268,4.88712,2046.2,2045.6,4.80210449]
[1742401609498,9.77442,2046.2,2045.8,4.88787]
[1742401609664,4.88734,2046.1,2045.8,4.88787]
[1742401609997,4.88751,2046.1,2045.6,3.7567]
[1742401610195,4.88751,2046.1,2045.7,4.88812]
[1742401610394,1.388146,2046.3,2045.6,3.7567]
[1742401610395,4.88768,2046.0,2045.6,3.7567]
[1742401610700,4.88768,2046.0,2045.7,4.88825]
[1742401610887,4.88736,2046.1,2045.7,9.77633]
[1742401611277,4.88736,2046.1,2045.7,4.88808]
[1742401611665,4.88748,2046.1,2045.6,10.68715]
[1742401611865,9.77499,2046.1,2045.6,10.68715]
[1742401612061,4.88748,2046.1,2045.6,10.6871]
[1742401612304,4.88735,2046.1,2045.7,9.77646]
[1742401612504,9.77443,2046.2,2045.8,4.88805]
[1742401612661,9.77443,2046.2,2045.7,4.88819]
[1742401612662,4.88749,2046.1,2045.7,4.88819]
[1742401612866,9.775,2046.1,2045.7,4.88819]
[1742401613382,4.88766,2046.0,2045.7,4.88819]
[1742401614005,9.7754,2046.0,2045.6,19.24332449]
[1742401614204,4.88793,2045.9,2045.6,10.30938]
[1742401614768,9.77593,2045.9,2045.6,5.26738]
[1742401614968,9.77593,2045.9,2045.6,4.51068]
[1742401615169,4.88793,2045.9,2045.6,4.51068]
[1742401615481,9.77591,2045.9,2045.6,4.51068]
[1742401615683,4.88793,2045.9,2045.6,4.51068]
[1742401615881,4.88793,2045.9,2045.6,9.39914]
[1742401618703,4.88793,2045.9,2045.6,4.88846]
[1742401618912,4.8876,2046.0,2045.6,9.77686]
[1742401619423,4.8876,2046.0,2045.7,4.88818]
[1742401620306,4.8876,2046.0,2045.6,8.93380449]
[1742401620610,9.77536,2046.0,2045.6,8.93380449]
[1742401620902,4.88784,2045.9,2045.6,8.93380449]
[1742401621091,9.77581,2045.9,2045.5,14.80230045]
[1742401621299,4.88784,2045.9,2045.6,4.8885]
[1742401621804,9.77454,2046.2,2045.8,4.88793]
[1742401621972,0.8194,2046.3,2046.0,4.8874]
[1742401622305,4.88678,2046.4,2046.0,4.88758]
[1742401622680,4.88678,2046.4,2046.0,9.77501]
[1742401623098,5.71787,2046.5,2046.1,10.60322]
[1742401623303,5.71787,2046.5,2046.1,5.71591]
[1742401623498,4.88647,2046.5,2046.1,10.60315]
[1742401623799,4.88647,2046.5,2046.1,5.71591]
[1742401624142,9.77302,2046.5,2046.1,5.71591]
[1742401624311,4.88665,2046.4,2046.1,5.71591]
[1742401624923,4.88646,2046.5,2046.1,6.07752395]
[1742401625915,4.88646,2046.5,2046.1,10.96470395]
[1742401626119,4.88665,2046.4,2046.1,6.07749395]
[1742401626320,4.88646,2046.5,2046.1,10.96471395]
[1742401626515,9.77301,2046.5,2046.1,6.07749395]
[1742401626826,4.8867,2046.4,2046.1,6.07749395]
[1742401627127,4.8867,2046.4,2046.1,0.8287]
[1742401627331,4.88696,2046.3,2046.0,3.0]
[1742401627627,4.88696,2046.3,2045.9,9.9267]
[1742401627814,4.88711,2046.2,2045.9,9.9267]
[1742401628014,4.88663,2046.4,2046.0,4.88758]
[1742401628232,4.88686,2046.3,2046.0,4.88743]
[1742401628533,4.88686,2046.3,2045.9,9.92669]
[1742401629094,4.88686,2046.3,2045.9,9.92673]
[1742401629507,4.88686,2046.3,2046.0,4.88752]
[1742401630434,4.88686,2046.3,2045.9,9.92672]
[1742401631038,9.7739,2046.3,2045.9,9.92672]
[1742401631233,4.88686,2046.3,2045.9,9.92672]
[1742401631436,5.70626,2046.3,2045.9,5.039]
[1742401631603,4.8872,2046.2,2045.9,5.039]
[1742401632029,4.8872,2046.2,2045.9,9.92676]
[1742401633033,5.70626,2046.3,2045.9,9.92676]
[1742401633230,10.59329,2046.3,2045.9,9.92676]
[1742401633419,5.70626,2046.3,2045.9,14.81445]
[1742401633604,5.70626,2046.3,2045.9,9.92669]
[1742401633804,5.70626,2046.3,2046.0,4.88751]
[1742401634243,5.70626,2046.3,2045.9,9.92669]
[1742401634415,5.70626,2046.3,2045.9,14.81437]